Workbook

Sheet Overview
L39: © Copyright 2013, ProbabilityManagement.org

Sheet Background
I8: Potential Aircraft in Portfolio | P8: Five Global Threat Scenarios
I9: Small Aircraft | P9: Required Tons/Day by Region & Scenario
P10: Region | Q10: A | R10: B | S10: C | T10: D | U10: E | V10: F
P11: Scenario 1 | Q11: 20 | R11: 0 | S11: 4 | T11: 3 | U11: 14 | V11: 20
P12: Scenario 2 | Q12: 20 | R12: 0 | S12: 5 | T12: 2 | U12: 14 | V12: 8
P13: Scenario 3 | Q13: 10 | R13: 10 | S13: 3 | T13: 4 | U13: 16 | V13: 11
J14: 20 | K14: Maximum | P14: Scenario 4 | Q14: 0 | R14: 20 | S14: 4 | T14: 2 | U14: 14 | V14: 13
I15: Medium Aircraft | P15: Scenario 5 | Q15: 0 | R15: 20 | S15: 4 | T15: 4 | U15: 17 | V15: 18
J22: 15 | K22: Maximum
I24: Large Aircraft
J31: 4 | K31: Maximum

Sheet High Level Model
AI4: Red
AI5: Orange
K8: Cost in $MM | M8: Avg. Shortfall Tons/Day
K9: ='Detailed Model'!T7 -> 1300 | M9: ='Detailed Model'!V7 -> 13.6
B11: Small Aircraft
C16: Planes Used | E16: ='Detailed Model'!E13 -> 6
B18: Medium Aircraft | R18: Global Threat Library:
R19: Potential Tons/Day Required by Region
R20: Region | S20: A | T20: B | U20: C | V20: D | W20: E | X20: F
R21: Scenario 1 | S21: =INDEX('Threat Libraries'!C6:I6,,(6*Threat-5)) -> 20 | T21: =INDEX('Threat Libraries'!D6:J6,,(6*Threat-5)) -> 0 | U21: =INDEX('Threat Libraries'!E6:K6,,(6*Threat-5)) -> 4 | V21: =INDEX('Threat Libraries'!F6:L6,,(6*Threat-5)) -> 3 | W21: =INDEX('Threat Libraries'!G6:M6,,(6*Threat-5)) -> 14 | X21: =INDEX('Threat Libraries'!H6:N6,,(6*Threat-5)) -> 20
R22: Scenario 2 | S22: =INDEX('Threat Libraries'!C7:I7,,(6*Threat-5)) -> 20 | T22: =INDEX('Threat Libraries'!D7:J7,,(6*Threat-5)) -> 0 | U22: =INDEX('Threat Libraries'!E7:K7,,(6*Threat-5)) -> 5 | V22: =INDEX('Threat Libraries'!F7:L7,,(6*Threat-5)) -> 2 | W22: =INDEX('Threat Libraries'!G7:M7,,(6*Threat-5)) -> 14 | X22: =INDEX('Threat Libraries'!H7:N7,,(6*Threat-5)) -> 8
R23: Scenario 3 | S23: =INDEX('Threat Libraries'!C8:I8,,(6*Threat-5)) -> 10 | T23: =INDEX('Threat Libraries'!D8:J8,,(6*Threat-5)) -> 10 | U23: =INDEX('Threat Libraries'!E8:K8,,(6*Threat-5)) -> 3 | V23: =INDEX('Threat Libraries'!F8:L8,,(6*Threat-5)) -> 4 | W23: =INDEX('Threat Libraries'!G8:M8,,(6*Threat-5)) -> 16 | X23: =INDEX('Threat Libraries'!H8:N8,,(6*Threat-5)) -> 11
C24: Planes Used | E24: ='Detailed Model'!E19 -> 15 | R24: Scenario 4 | S24: =INDEX('Threat Libraries'!C9:I9,,(6*Threat-5)) -> 0 | T24: =INDEX('Threat Libraries'!D9:J9,,(6*Threat-5)) -> 20 | U24: =INDEX('Threat Libraries'!E9:K9,,(6*Threat-5)) -> 4 | V24: =INDEX('Threat Libraries'!F9:L9,,(6*Threat-5)) -> 2 | W24: =INDEX('Threat Libraries'!G9:M9,,(6*Threat-5)) -> 14 | X24: =INDEX('Threat Libraries'!H9:N9,,(6*Threat-5)) -> 13
R25: Scenario 5 | S25: =INDEX('Threat Libraries'!C10:I10,,(6*Threat-5)) -> 0 | T25: =INDEX('Threat Libraries'!D10:J10,,(6*Threat-5)) -> 20 | U25: =INDEX('Threat Libraries'!E10:K10,,(6*Threat-5)) -> 4 | V25: =INDEX('Threat Libraries'!F10:L10,,(6*Threat-5)) -> 4 | W25: =INDEX('Threat Libraries'!G10:M10,,(6*Threat-5)) -> 17 | X25: =INDEX('Threat Libraries'!H10:N10,,(6*Threat-5)) -> 18
B26: Large Aircraft
C33: Planes Used | E33: ='Detailed Model'!E30 -> 4
AA54: 1

Sheet Detail Instructions

Sheet Detailed Model
K2: Requirements by Location | R2: Global Threat Library:
M3: Tons/Day
H4: 0 | K4: A | L4: B | M4: C | N4: D | O4: E | P4: F
H5: =IF(H4=0,"Average","Scenario "&$H$4) -> Average | I5: Required | K5: =INDEX('Threat Libraries'!C6:I11,PM_Index,(6*Threat-5)) -> 10 | L5: =INDEX('Threat Libraries'!D6:J11,PM_Index,(6*Threat-5)) -> 10 | M5: =INDEX('Threat Libraries'!E6:K11,PM_Index,(6*Threat-5)) -> 4 | N5: =INDEX('Threat Libraries'!F6:L11,PM_Index,(6*Threat-5)) -> 3 | O5: =INDEX('Threat Libraries'!G6:M11,PM_Index,(6*Threat-5)) -> 15 | P5: =INDEX('Threat Libraries'!H6:N11,PM_Index,(6*Threat-5)) -> 14 | AN5: ='High Level Model'!AA54 -> 1
I6: Delivered | K6: =SUMPRODUCT(Assignments,G10:G36) -> 10 | L6: 6 | M6: 4 | N6: 4 | O6: 14 | P6: 14 | T6: Cost | V6: Avg. Shortfall
I7: Delta | K7: =K5-K6 -> 0 | L7: 4 | M7: 0 | N7: -1 | O7: 1 | P7: 0 | Q7: Total_Shortfall | T7: =SUMPRODUCT(Assignments,Costs) -> 1300 | V7: =AVERAGE(Total_Shortfall) -> 13.6
I8: Shortfall | K8: =IF(K7>0,K7,0) -> 0 | L8: 4 | M8: 0 | N8: 0 | O8: 1 | P8: 0 | Q8: =SUM(K8:P8) -> 5
D9: Cost in $000s | F9: Number Assigned | G9: A | H9: B | I9: C | J9: D | K9: E | L9: F
B10: Small Aircraft | C10: 1 | D10: 40 | E10: Available | F10: 0 | G10: 1
C11: 2 | D11: 60 | E11: 20 | F11: 0 | H11: 1
C12: 3 | D12: 40 | E12: Used | F12: 0 | I12: 1 | AO12: Bins | AP12: Frequency
C13: 4 | D13: 50 | E13: =SUM(F10:F15) -> 6 | F13: 0 | J13: 1 | AP13: Total Shortfal
C14: 5 | D14: 30 | F14: 6 | K14: 1 | AO14: 0 | AP14: =FREQUENCY(Total_Shortfall,$AO$15:$AO$23)/5 -> 0
C15: 6 | D15: 40 | F15: 0 | L15: 1 | AO15: =AO14 + ( $AO$24 - $AO$14 ) / 10 -> 5 | AP15: 0.2
B16: Medium Aircraft | C16: 7 | D16: 70 | E16: Available | F16: 0 | G16: 1 | H16: 1 | AO16: 10 | AP16: 0.4
C17: 8 | D17: 70 | E17: 15 | F17: 0 | H17: 1 | I17: 1 | AO17: 15 | AP17: 0.2
C18: 9 | D18: 60 | E18: Used | F18: 0 | I18: 1 | J18: 1 | AO18: 20 | AP18: 0.2
C19: 10 | D19: 50 | E19: =SUM(F16:F26) -> 15 | F19: 0 | J19: 1 | K19: 1 | AO19: 25 | AP19: 0
C20: 11 | D20: 80 | F20: 0 | K20: 1 | L20: 1 | AO20: 30 | AP20: 0
C21: 12 | D21: 50 | F21: 5 | G21: 2 | AO21: 35 | AP21: 0
C22: 13 | D22: 60 | F22: 3 | H22: 2 | AO22: 40 | AP22: 0
C23: 14 | D23: 50 | F23: 0 | I23: 2 | AO23: 45 | AP23: 0
C24: 15 | D24: 60 | F24: 0 | J24: 2 | AO24: 50
C25: 16 | D25: 50 | F25: 0 | K25: 2
C26: 17 | D26: 50 | F26: 7 | L26: 2
B27: Large Aircraft | C27: 18 | D27: 120 | E27: Available | F27: 0 | L27: 2
C28: 19 | D28: 100 | E28: 4 | F28: 0 | G28: 0 | I28: 2 | K28: 2
C29: 20 | D29: 90 | E29: Used | F29: 0 | I29: 2 | J29: 2
C30: 21 | D30: 110 | E30: =SUM(F27:F36) -> 4 | F30: 0 | J30: 2 | K30: 2
C31: 22 | D31: 130 | F31: 0 | K31: 2 | L31: 2
C32: 23 | D32: 100 | F32: 0 | G32: 4
C33: 24 | D33: 90 | F33: 1 | I33: 4
C34: 25 | D34: 90 | F34: 1 | J34: 4
C35: 26 | D35: 80 | F35: 2 | K35: 4
C36: 27 | D36: 100 | F36: 0 | L36: 4
Q72: =T7 -> 1300 | R72: =V7 -> 13.6
R80: ='High Level Model'!S29 -> 0 | S80: ='High Level Model'!T29 -> 0 | T80: ='High Level Model'!U29 -> 0 | U80: ='High Level Model'!V29 -> 0 | V80: ='High Level Model'!W29 -> 0 | W80: ='High Level Model'!X29 -> 0

Sheet Calculations (hidden)
D1: Assignment | E1: Assignment | F1: Assignment | G1: Assignment | H1: Assignment | I1: Assignment | J1: Assignment | K1: Assignment | L1: Assignment | M1: Assignment | N1: Assignment | O1: Assignment | P1: Assignment | Q1: Assignment | R1: Assignment | S1: Assignment | T1: Assignment | U1: Assignment | V1: Assignment
D2: 0 | E2: 0 | F2: 0 | G2: 0 | H2: 0 | I2: 0 | J2: 0 | K2: 0 | L2: 0 | M2: 0 | N2: 0 | O2: 0 | P2: 0 | Q2: 0 | R2: 1 | S2: 0 | T2: 0 | U2: 1 | V2: 4
D3: 0 | E3: 0 | F3: 0 | G3: 0 | H3: 0 | I3: 0 | J3: 0 | K3: 0 | L3: 0 | M3: 0 | N3: 0 | O3: 0 | P3: 0 | Q3: 0 | R3: 0 | S3: 0 | T3: 0 | U3: 0 | V3: 0
D4: 0 | E4: 0 | F4: 0 | G4: 0 | H4: 0 | I4: 0 | J4: 0 | K4: 0 | L4: 0 | M4: 0 | N4: 0 | O4: 0 | P4: 0 | Q4: 0 | R4: 0 | S4: 0 | T4: 0 | U4: 0 | V4: 0
D5: 0 | E5: 0 | F5: 0 | G5: 0 | H5: 0 | I5: 0 | J5: 0 | K5: 0 | L5: 0 | M5: 0 | N5: 0 | O5: 0 | P5: 0 | Q5: 0 | R5: 0 | S5: 0 | T5: 0 | U5: 0 | V5: 0
D6: 0 | E6: 0 | F6: 1 | G6: 0 | H6: 2 | I6: 2 | J6: 0 | K6: 2 | L6: 0 | M6: 1 | N6: 2 | O6: 0 | P6: 2 | Q6: 6 | R6: 6 | S6: 11 | T6: 14 | U6: 16 | V6: 16
D7: 0 | E7: 0 | F7: 0 | G7: 0 | H7: 0 | I7: 0 | J7: 0 | K7: 0 | L7: 0 | M7: 1 | N7: 0 | O7: 0 | P7: 1 | Q7: 0 | R7: 1 | S7: 0 | T7: 0 | U7: 0 | V7: 0
D8: 0 | E8: 0 | F8: 0 | G8: 0 | H8: 0 | I8: 0 | J8: 0 | K8: 0 | L8: 0 | M8: 0 | N8: 0 | O8: 0 | P8: 0 | Q8: 0 | R8: 0 | S8: 0 | T8: 0 | U8: 0 | V8: 0
D9: 0 | E9: 0 | F9: 0 | G9: 0 | H9: 0 | I9: 0 | J9: 0 | K9: 0 | L9: 0 | M9: 0 | N9: 0 | O9: 0 | P9: 0 | Q9: 0 | R9: 0 | S9: 0 | T9: 0 | U9: 0 | V9: 0
D10: 0 | E10: 0 | F10: 0 | G10: 0 | H10: 0 | I10: 0 | J10: 0 | K10: 0 | L10: 0 | M10: 0 | N10: 0 | O10: 0 | P10: 0 | Q10: 0 | R10: 0 | S10: 0 | T10: 0 | U10: 0 | V10: 0
D11: 0 | E11: 0 | F11: 0 | G11: 1 | H11: 0 | I11: 0 | J11: 0 | K11: 0 | L11: 2 | M11: 1 | N11: 0 | O11: 2 | P11: 0 | Q11: 0 | R11: 0 | S11: 0 | T11: 0 | U11: 0 | V11: 0
D12: 0 | E12: 0 | F12: 0 | G12: 0 | H12: 0 | I12: 0 | J12: 0 | K12: 0 | L12: 0 | M12: 0 | N12: 0 | O12: 0 | P12: 0 | Q12: 0 | R12: 0 | S12: 0 | T12: 0 | U12: 0 | V12: 0
D13: 0 | E13: 0 | F13: 0 | G13: 0 | H13: 0 | I13: 0 | J13: 0 | K13: 0 | L13: 1 | M13: 3 | N13: 5 | O13: 5 | P13: 5 | Q13: 5 | R13: 4 | S13: 5 | T13: 5 | U13: 5 | V13: 5
D14: 0 | E14: 0 | F14: 0 | G14: 0 | H14: 0 | I14: 0 | J14: 0 | K14: 0 | L14: 0 | M14: 0 | N14: 0 | O14: 2 | P14: 2 | Q14: 3 | R14: 5 | S14: 5 | T14: 5 | U14: 5 | V14: 5
D15: 0 | E15: 0 | F15: 0 | G15: 0 | H15: 0 | I15: 0 | J15: 0 | K15: 1 | L15: 0 | M15: 1 | N15: 1 | O15: 0 | P15: 2 | Q15: 0 | R15: 0 | S15: 0 | T15: 0 | U15: 0 | V15: 0
D16: 0 | E16: 0 | F16: 0 | G16: 0 | H16: 0 | I16: 0 | J16: 0 | K16: 0 | L16: 0 | M16: 0 | N16: 0 | O16: 0 | P16: 0 | Q16: 0 | R16: 0 | S16: 0 | T16: 0 | U16: 0 | V16: 0
D17: 0 | E17: 0 | F17: 0 | G17: 0 | H17: 0 | I17: 0 | J17: 3 | K17: 0 | L17: 2 | M17: 0 | N17: 0 | O17: 0 | P17: 0 | Q17: 0 | R17: 0 | S17: 0 | T17: 1 | U17: 0 | V17: 0
D18: 0 | E18: 0 | F18: 0 | G18: 0 | H18: 0 | I18: 2 | J18: 4 | K18: 5 | L18: 6 | M18: 5 | N18: 6 | O18: 6 | P18: 6 | Q18: 7 | R18: 6 | S18: 5 | T18: 4 | U18: 5 | V18: 5
D19: 0 | E19: 0 | F19: 0 | G19: 0 | H19: 0 | I19: 0 | J19: 0 | K19: 0 | L19: 0 | M19: 0 | N19: 0 | O19: 0 | P19: 0 | Q19: 0 | R19: 0 | S19: 0 | T19: 0 | U19: 0 | V19: 0
D20: 0 | E20: 0 | F20: 0 | G20: 0 | H20: 0 | I20: 0 | J20: 0 | K20: 0 | L20: 0 | M20: 0 | N20: 0 | O20: 0 | P20: 0 | Q20: 0 | R20: 0 | S20: 0 | T20: 0 | U20: 0 | V20: 0
D21: 0 | E21: 0 | F21: 0 | G21: 0 | H21: 1 | I21: 1 | J21: 1 | K21: 1 | L21: 0 | M21: 1 | N21: 1 | O21: 0 | P21: 0 | Q21: 0 | R21: 0 | S21: 0 | T21: 0 | U21: 0 | V21: 0
D22: 0 | E22: 0 | F22: 0 | G22: 0 | H22: 0 | I22: 0 | J22: 0 | K22: 0 | L22: 0 | M22: 0 | N22: 0 | O22: 0 | P22: 0 | Q22: 0 | R22: 0 | S22: 0 | T22: 0 | U22: 0 | V22: 0
D23: 0 | E23: 0 | F23: 0 | G23: 0 | H23: 0 | I23: 0 | J23: 0 | K23: 0 | L23: 0 | M23: 0 | N23: 0 | O23: 0 | P23: 0 | Q23: 0 | R23: 0 | S23: 0 | T23: 0 | U23: 0 | V23: 0
D24: 0 | E24: 0 | F24: 0 | G24: 0 | H24: 0 | I24: 0 | J24: 0 | K24: 0 | L24: 0 | M24: 0 | N24: 0 | O24: 0 | P24: 0 | Q24: 0 | R24: 0 | S24: 0 | T24: 0 | U24: 0 | V24: 0
B25: ='Detailed Model'!H4 -> 0 | D25: 0 | E25: 0 | F25: 0 | G25: 0 | H25: 0 | I25: 0 | J25: 0 | K25: 0 | L25: 1 | M25: 0 | N25: 0 | O25: 1 | P25: 0 | Q25: 1 | R25: 1 | S25: 1 | T25: 1 | U25: 1 | V25: 1
D26: 0 | E26: 0 | F26: 0 | G26: 0 | H26: 0 | I26: 0 | J26: 0 | K26: 0 | L26: 0 | M26: 0 | N26: 0 | O26: 0 | P26: 1 | Q26: 1 | R26: 1 | S26: 1 | T26: 1 | U26: 1 | V26: 1
D27: 0 | E27: 1 | F27: 2 | G27: 3 | H27: 3 | I27: 3 | J27: 2 | K27: 3 | L27: 2 | M27: 3 | N27: 3 | O27: 3 | P27: 3 | Q27: 2 | R27: 2 | S27: 1 | T27: 0 | U27: 0 | V27: 0
D28: 0 | E28: 0 | F28: 0 | G28: 0 | H28: 0 | I28: 0 | J28: 0 | K28: 0 | L28: 0 | M28: 0 | N28: 0 | O28: 0 | P28: 0 | Q28: 0 | R28: 0 | S28: 1 | T28: 2 | U28: 2 | V28: 2
D29: =SUMPRODUCT(D2:D28,Costs) -> 0 | E29: 80 | F29: 190 | G29: 290 | H29: 390 | I29: 490 | J29: 600 | K29: 690 | L29: 800 | M29: 900 | N29: 990 | O29: 1100 | P29: 1200 | Q29: 1300 | R29: 1400 | S29: 1490 | T29: 1600 | U29: 1700 | V29: 1820
D30: =AVERAGE(Shortfall01) -> 56 | E30: =AVERAGE(Shortfall02) -> 52 | F30: =AVERAGE(Shortfall03) -> 47 | G30: =AVERAGE(Shortfall04) -> 42 | H30: =AVERAGE(Shortfall05) -> 38 | I30: =AVERAGE(Shortfall06) -> 34 | J30: =AVERAGE(Shortfall07) -> 30 | K30: =AVERAGE(Shortfall08) -> 26.6 | L30: =AVERAGE(Shortfall09) -> 24 | M30: =AVERAGE(Shortfall10) -> 21.6 | N30: =AVERAGE(Shortfall11) -> 19.2 | O30: =AVERAGE(Shortfall12) -> 16.8 | P30: =AVERAGE(Shortfall13) -> 15.2 | Q30: =AVERAGE(Shortfall14) -> 13.6 | R30: =AVERAGE(Shortfall15) -> 12.2 | S30: =AVERAGE(Shortfall16) -> 10.8 | T30: =AVERAGE(Shortfall17) -> 9.6 | U30: =AVERAGE(Shortfall18) -> 8.4 | V30: =AVERAGE(Shortfall19) -> 7.2
A31: ='Detailed Model'!K$5 -> 10 | B31: A | C31: =A31 -> 10 | D31: =SUMPRODUCT(D$2:D$28,LocA) -> 0 | E31: 0 | F31: 0 | G31: 0 | H31: 0 | I31: 0 | J31: 0 | K31: 0 | L31: 2 | M31: 6 | N31: 10 | O31: 10 | P31: 10 | Q31: 10 | R31: 9 | S31: 10 | T31: 10 | U31: 11 | V31: 14
A32: ='Detailed Model'!L$5 -> 10 | B32: B | C32: =A32 -> 10 | D32: =SUMPRODUCT(D$2:D$28,LocB) -> 0 | E32: 0 | F32: 0 | G32: 0 | H32: 0 | I32: 0 | J32: 0 | K32: 0 | L32: 0 | M32: 0 | N32: 0 | O32: 4 | P32: 4 | Q32: 6 | R32: 10 | S32: 10 | T32: 10 | U32: 10 | V32: 10
A33: ='Detailed Model'!M$5 -> 4 | B33: C | C33: 4 | D33: =SUMPRODUCT(D$2:D$28,LocC) -> 0 | E33: 0 | F33: 0 | G33: 0 | H33: 2 | I33: 2 | J33: 2 | K33: 4 | L33: 4 | M33: 4 | N33: 4 | O33: 4 | P33: 4 | Q33: 4 | R33: 4 | S33: 4 | T33: 4 | U33: 4 | V33: 4
A34: ='Detailed Model'!N$5 -> 3 | B34: D | C34: 3 | D34: =SUMPRODUCT(D$2:D$28,LocD) -> 0 | E34: 0 | F34: 0 | G34: 1 | H34: 2 | I34: 2 | J34: 2 | K34: 2 | L34: 2 | M34: 3 | N34: 2 | O34: 2 | P34: 4 | Q34: 4 | R34: 4 | S34: 4 | T34: 4 | U34: 4 | V34: 4
A35: ='Detailed Model'!O$5 -> 15 | B35: E | C35: 15 | D35: =SUMPRODUCT(D$2:D$28,LocE) -> 0 | E35: 4 | F35: 9 | G35: 13 | H35: 14 | I35: 14 | J35: 14 | K35: 14 | L35: 14 | M35: 14 | N35: 14 | O35: 14 | P35: 14 | Q35: 14 | R35: 14 | S35: 15 | T35: 16 | U35: 16 | V35: 16
A36: ='Detailed Model'!P$5 -> 14 | B36: F | C36: 14 | D36: =SUMPRODUCT(D$2:D$28,LocF) -> 0 | E36: 0 | F36: 0 | G36: 0 | H36: 0 | I36: 4 | J36: 8 | K36: 10 | L36: 12 | M36: 11 | N36: 12 | O36: 12 | P36: 13 | Q36: 14 | R36: 13 | S36: 14 | T36: 16 | U36: 18 | V36: 18
C37: Delta | D37: =$C31-D31 -> 10 | E37: =$C31-E31 -> 10 | F37: 10 | G37: 10 | H37: 10 | I37: 10 | J37: =$C31-J31 -> 10 | K37: 10 | L37: 8 | M37: =$C31-M31 -> 4 | N37: 0 | O37: 0 | P37: 0 | Q37: 0 | R37: 1 | S37: 0 | T37: 0 | U37: -1 | V37: -4
D38: =$C32-D32 -> 10 | E38: 10 | F38: 10 | G38: 10 | H38: 10 | I38: 10 | J38: =$C32-J32 -> 10 | K38: 10 | L38: 10 | M38: =$C32-M32 -> 10 | N38: 10 | O38: 6 | P38: 6 | Q38: 4 | R38: 0 | S38: 0 | T38: 0 | U38: 0 | V38: 0
D39: 4 | E39: 4 | F39: 4 | G39: 4 | H39: 2 | I39: 2 | J39: =$C33-J33 -> 2 | K39: 0 | L39: 0 | M39: =$C33-M33 -> 0 | N39: 0 | O39: 0 | P39: 0 | Q39: 0 | R39: 0 | S39: 0 | T39: 0 | U39: 0 | V39: 0
D40: 3 | E40: 3 | F40: 3 | G40: 2 | H40: 1 | I40: 1 | J40: =$C34-J34 -> 1 | K40: 1 | L40: 1 | M40: =$C34-M34 -> 0 | N40: 1 | O40: 1 | P40: -1 | Q40: -1 | R40: -1 | S40: -1 | T40: -1 | U40: -1 | V40: -1
D41: 15 | E41: 11 | F41: 6 | G41: 2 | H41: 1 | I41: 1 | J41: =$C35-J35 -> 1 | K41: 1 | L41: 1 | M41: =$C35-M35 -> 1 | N41: 1 | O41: 1 | P41: 1 | Q41: 1 | R41: 1 | S41: 0 | T41: -1 | U41: -1 | V41: -1
D42: 14 | E42: 14 | F42: 14 | G42: 14 | H42: 14 | I42: 10 | J42: =$C36-J36 -> 6 | K42: 4 | L42: 2 | M42: =$C36-M36 -> 3 | N42: 2 | O42: 2 | P42: 1 | Q42: 0 | R42: 1 | S42: 0 | T42: -2 | U42: -4 | V42: -4
C43: Shortfall | D43: =IF(D37>0,D37,0) -> 10 | E43: 10 | F43: 10 | G43: 10 | H43: 10 | I43: =IF(I37>0,I37,0) -> 10 | J43: 10 | K43: =IF(K37>0,K37,0) -> 10 | L43: 8 | M43: =IF(M37>0,M37,0) -> 4 | N43: 0 | O43: 0 | P43: 0 | Q43: 0 | R43: 1 | S43: 0 | T43: 0 | U43: 0 | V43: 0
D44: =IF(D38>0,D38,0) -> 10 | E44: 10 | F44: 10 | G44: 10 | H44: 10 | I44: =IF(I38>0,I38,0) -> 10 | J44: 10 | K44: =IF(K38>0,K38,0) -> 10 | L44: 10 | M44: =IF(M38>0,M38,0) -> 10 | N44: 10 | O44: 6 | P44: 6 | Q44: 4 | R44: 0 | S44: 0 | T44: 0 | U44: 0 | V44: 0
D45: =IF(D39>0,D39,0) -> 4 | E45: 4 | F45: 4 | G45: 4 | H45: 2 | I45: =IF(I39>0,I39,0) -> 2 | J45: 2 | K45: 0 | L45: 0 | M45: =IF(M39>0,M39,0) -> 0 | N45: 0 | O45: 0 | P45: 0 | Q45: 0 | R45: 0 | S45: 0 | T45: 0 | U45: 0 | V45: 0
D46: =IF(D40>0,D40,0) -> 3 | E46: 3 | F46: 3 | G46: 2 | H46: 1 | I46: =IF(I40>0,I40,0) -> 1 | J46: 1 | K46: 1 | L46: 1 | M46: =IF(M40>0,M40,0) -> 0 | N46: 1 | O46: 1 | P46: 0 | Q46: 0 | R46: 0 | S46: 0 | T46: 0 | U46: 0 | V46: 0
D47: =IF(D41>0,D41,0) -> 15 | E47: 11 | F47: 6 | G47: 2 | H47: 1 | I47: =IF(I41>0,I41,0) -> 1 | J47: 1 | K47: 1 | L47: 1 | M47: =IF(M41>0,M41,0) -> 1 | N47: 1 | O47: 1 | P47: 1 | Q47: 1 | R47: 1 | S47: 0 | T47: 0 | U47: 0 | V47: 0
D48: =IF(D42>0,D42,0) -> 14 | E48: 14 | F48: 14 | G48: 14 | H48: 14 | I48: =IF(I42>0,I42,0) -> 10 | J48: 6 | K48: 4 | L48: 2 | M48: =IF(M42>0,M42,0) -> 3 | N48: 2 | O48: 2 | P48: 1 | Q48: 0 | R48: 1 | S48: 0 | T48: 0 | U48: 0 | V48: 0
D49: =SUM(D43:D48) -> 56 | E49: =SUM(E43:E48) -> 52 | F49: =SUM(F43:F48) -> 47 | G49: 42 | H49: 38 | I49: 34 | J49: 30 | K49: 26 | L49: 22 | M49: 18 | N49: 14 | O49: 10 | P49: 8 | Q49: 5 | R49: 3 | S49: 0 | T49: 0 | U49: 0 | V49: 0
D50: Shortfall01 | E50: Shortfall02 | F50: Shortfall03 | G50: Shortfall04 | H50: Shortfall05 | I50: Shortfall06 | J50: Shortfall07 | K50: Shortfall08 | L50: Shortfall09 | M50: Shortfall10 | N50: Shortfall11 | O50: Shortfall12 | P50: Shortfall13 | Q50: Shortfall14 | R50: Shortfall15 | S50: Shortfall16 | T50: Shortfall17 | U50: Shortfall18 | V50: Shortfall19
A51: ='Detailed Model'!G9 -> A | B51: ='Detailed Model'!H9 -> B | C51: ='Detailed Model'!I9 -> C | D51: ='Detailed Model'!J9 -> D | E51: ='Detailed Model'!K9 -> E | F51: ='Detailed Model'!L9 -> F
A52: ='Detailed Model'!G10 -> 1 | B52: ='Detailed Model'!H10 -> 0 | C52: ='Detailed Model'!I10 -> 0 | D52: ='Detailed Model'!J10 -> 0 | E52: ='Detailed Model'!K10 -> 0 | F52: ='Detailed Model'!L10 -> 0
A53: ='Detailed Model'!G11 -> 0 | B53: ='Detailed Model'!H11 -> 1 | C53: ='Detailed Model'!I11 -> 0 | D53: ='Detailed Model'!J11 -> 0 | E53: ='Detailed Model'!K11 -> 0 | F53: ='Detailed Model'!L11 -> 0
A54: ='Detailed Model'!G12 -> 0 | B54: ='Detailed Model'!H12 -> 0 | C54: ='Detailed Model'!I12 -> 1 | D54: ='Detailed Model'!J12 -> 0 | E54: ='Detailed Model'!K12 -> 0 | F54: ='Detailed Model'!L12 -> 0
A55: ='Detailed Model'!G13 -> 0 | B55: ='Detailed Model'!H13 -> 0 | C55: ='Detailed Model'!I13 -> 0 | D55: ='Detailed Model'!J13 -> 1 | E55: ='Detailed Model'!K13 -> 0 | F55: ='Detailed Model'!L13 -> 0
A56: ='Detailed Model'!G14 -> 0 | B56: ='Detailed Model'!H14 -> 0 | C56: ='Detailed Model'!I14 -> 0 | D56: ='Detailed Model'!J14 -> 0 | E56: ='Detailed Model'!K14 -> 1 | F56: ='Detailed Model'!L14 -> 0
A57: ='Detailed Model'!G15 -> 0 | B57: ='Detailed Model'!H15 -> 0 | C57: ='Detailed Model'!I15 -> 0 | D57: ='Detailed Model'!J15 -> 0 | E57: ='Detailed Model'!K15 -> 0 | F57: ='Detailed Model'!L15 -> 1
A58: ='Detailed Model'!G16 -> 1 | B58: ='Detailed Model'!H16 -> 1 | C58: ='Detailed Model'!I16 -> 0 | D58: ='Detailed Model'!J16 -> 0 | E58: ='Detailed Model'!K16 -> 0 | F58: ='Detailed Model'!L16 -> 0
A59: ='Detailed Model'!G17 -> 0 | B59: ='Detailed Model'!H17 -> 1 | C59: ='Detailed Model'!I17 -> 1 | D59: ='Detailed Model'!J17 -> 0 | E59: ='Detailed Model'!K17 -> 0 | F59: ='Detailed Model'!L17 -> 0
A60: ='Detailed Model'!G18 -> 0 | B60: ='Detailed Model'!H18 -> 0 | C60: ='Detailed Model'!I18 -> 1 | D60: ='Detailed Model'!J18 -> 1 | E60: ='Detailed Model'!K18 -> 0 | F60: ='Detailed Model'!L18 -> 0
A61: ='Detailed Model'!G19 -> 0 | B61: ='Detailed Model'!H19 -> 0 | C61: ='Detailed Model'!I19 -> 0 | D61: ='Detailed Model'!J19 -> 1 | E61: ='Detailed Model'!K19 -> 1 | F61: ='Detailed Model'!L19 -> 0
A62: ='Detailed Model'!G20 -> 0 | B62: ='Detailed Model'!H20 -> 0 | C62: ='Detailed Model'!I20 -> 0 | D62: ='Detailed Model'!J20 -> 0 | E62: ='Detailed Model'!K20 -> 1 | F62: ='Detailed Model'!L20 -> 1
A63: ='Detailed Model'!G21 -> 2 | B63: ='Detailed Model'!H21 -> 0 | C63: ='Detailed Model'!I21 -> 0 | D63: ='Detailed Model'!J21 -> 0 | E63: ='Detailed Model'!K21 -> 0 | F63: ='Detailed Model'!L21 -> 0
A64: ='Detailed Model'!G22 -> 0 | B64: ='Detailed Model'!H22 -> 2 | C64: ='Detailed Model'!I22 -> 0 | D64: ='Detailed Model'!J22 -> 0 | E64: ='Detailed Model'!K22 -> 0 | F64: ='Detailed Model'!L22 -> 0
A65: ='Detailed Model'!G23 -> 0 | B65: ='Detailed Model'!H23 -> 0 | C65: ='Detailed Model'!I23 -> 2 | D65: ='Detailed Model'!J23 -> 0 | E65: ='Detailed Model'!K23 -> 0 | F65: ='Detailed Model'!L23 -> 0
A66: ='Detailed Model'!G24 -> 0 | B66: ='Detailed Model'!H24 -> 0 | C66: ='Detailed Model'!I24 -> 0 | D66: ='Detailed Model'!J24 -> 2 | E66: ='Detailed Model'!K24 -> 0 | F66: ='Detailed Model'!L24 -> 0
A67: ='Detailed Model'!G25 -> 0 | B67: ='Detailed Model'!H25 -> 0 | C67: ='Detailed Model'!I25 -> 0 | D67: ='Detailed Model'!J25 -> 0 | E67: ='Detailed Model'!K25 -> 2 | F67: ='Detailed Model'!L25 -> 0
A68: ='Detailed Model'!G26 -> 0 | B68: ='Detailed Model'!H26 -> 0 | C68: ='Detailed Model'!I26 -> 0 | D68: ='Detailed Model'!J26 -> 0 | E68: ='Detailed Model'!K26 -> 0 | F68: ='Detailed Model'!L26 -> 2
A69: ='Detailed Model'!G27 -> 0 | B69: ='Detailed Model'!H27 -> 0 | C69: ='Detailed Model'!I27 -> 0 | D69: ='Detailed Model'!J27 -> 0 | E69: ='Detailed Model'!K27 -> 0 | F69: ='Detailed Model'!L27 -> 2
A70: ='Detailed Model'!G28 -> 0 | B70: ='Detailed Model'!H28 -> 0 | C70: ='Detailed Model'!I28 -> 2 | D70: ='Detailed Model'!J28 -> 0 | E70: ='Detailed Model'!K28 -> 2 | F70: ='Detailed Model'!L28 -> 0
A71: ='Detailed Model'!G29 -> 0 | B71: ='Detailed Model'!H29 -> 0 | C71: ='Detailed Model'!I29 -> 2 | D71: ='Detailed Model'!J29 -> 2 | E71: ='Detailed Model'!K29 -> 0 | F71: ='Detailed Model'!L29 -> 0
A72: ='Detailed Model'!G30 -> 0 | B72: ='Detailed Model'!H30 -> 0 | C72: ='Detailed Model'!I30 -> 0 | D72: ='Detailed Model'!J30 -> 2 | E72: ='Detailed Model'!K30 -> 2 | F72: ='Detailed Model'!L30 -> 0
A73: ='Detailed Model'!G31 -> 0 | B73: ='Detailed Model'!H31 -> 0 | C73: ='Detailed Model'!I31 -> 0 | D73: ='Detailed Model'!J31 -> 0 | E73: ='Detailed Model'!K31 -> 2 | F73: ='Detailed Model'!L31 -> 2
A74: ='Detailed Model'!G32 -> 4 | B74: ='Detailed Model'!H32 -> 0 | C74: ='Detailed Model'!I32 -> 0 | D74: ='Detailed Model'!J32 -> 0 | E74: ='Detailed Model'!K32 -> 0 | F74: ='Detailed Model'!L32 -> 0
A75: ='Detailed Model'!G33 -> 0 | B75: ='Detailed Model'!H33 -> 0 | C75: ='Detailed Model'!I33 -> 4 | D75: ='Detailed Model'!J33 -> 0 | E75: ='Detailed Model'!K33 -> 0 | F75: ='Detailed Model'!L33 -> 0
A76: ='Detailed Model'!G34 -> 0 | B76: ='Detailed Model'!H34 -> 0 | C76: ='Detailed Model'!I34 -> 0 | D76: ='Detailed Model'!J34 -> 4 | E76: ='Detailed Model'!K34 -> 0 | F76: ='Detailed Model'!L34 -> 0
A77: ='Detailed Model'!G35 -> 0 | B77: ='Detailed Model'!H35 -> 0 | C77: ='Detailed Model'!I35 -> 0 | D77: ='Detailed Model'!J35 -> 0 | E77: ='Detailed Model'!K35 -> 4 | F77: ='Detailed Model'!L35 -> 0
A78: ='Detailed Model'!G36 -> 0 | B78: ='Detailed Model'!H36 -> 0 | C78: ='Detailed Model'!I36 -> 0 | D78: ='Detailed Model'!J36 -> 0 | E78: ='Detailed Model'!K36 -> 0 | F78: ='Detailed Model'!L36 -> 4

Sheet Threat Libraries
A1: 5 | R1: Average | S1: 6
C5: Req_Red_A | D5: Req_Red_B | E5: Req_Red_C | F5: Req_Red_D | G5: Req_Red_E | H5: Req_Red_F | I5: Req_Orange_A | J5: Req_Orange_B | K5: Req_Orange_C | L5: Req_Orange_D | M5: Req_Orange_E | N5: Req_Orange_F
B6: 1 | C6: 20 | D6: 0 | E6: 4 | F6: 3 | G6: 14 | H6: 20 | I6: 25 | J6: 0 | K6: 4 | L6: 3 | M6: 14 | N6: 20
B7: 2 | C7: 20 | D7: 0 | E7: 5 | F7: 2 | G7: 14 | H7: 8 | I7: 25 | J7: 0 | K7: 5 | L7: 2 | M7: 14 | N7: 8
B8: 3 | C8: 10 | D8: 10 | E8: 3 | F8: 4 | G8: 16 | H8: 11 | I8: 10 | J8: 0 | K8: 3 | L8: 4 | M8: 16 | N8: 11
B9: 4 | C9: 0 | D9: 20 | E9: 4 | F9: 2 | G9: 14 | H9: 13 | I9: 0 | J9: 0 | K9: 4 | L9: 2 | M9: 14 | N9: 13
B10: 5 | C10: 0 | D10: 20 | E10: 4 | F10: 4 | G10: 17 | H10: 18 | I10: 0 | J10: 0 | K10: 4 | L10: 4 | M10: 17 | N10: 18
B11: Average | C11: 10 | D11: 10 | E11: 4 | F11: 3 | G11: 15 | H11: 14 | I11: 12 | J11: 0 | K11: 4 | L11: 3 | M11: 15 | N11: 14

Sheet PMTable
A1: =IF('Detailed Model'!H4=0,6,'Detailed Model'!H4) -> 6 | B1: Generated with the SIPmath™ Modeler Tools from ProbabilityManagement.org
B2: Index | C2: Shortfall01 | D2: Shortfall02 | E2: Shortfall03 | F2: Shortfall04 | G2: Shortfall05 | H2: Shortfall06 | I2: Shortfall07 | J2: Shortfall08 | K2: Shortfall09 | L2: Shortfall10 | M2: Shortfall11 | N2: Shortfall12 | O2: Shortfall13 | P2: Shortfall14 | Q2: Shortfall15 | R2: Shortfall16 | S2: Shortfall17 | T2: Shortfall18 | U2: Shortfall19 | V2: Total_Shortfall
B3: Values | C3: =Calculations!$D$49 -> 56 | D3: =Calculations!$E$49 -> 52 | E3: =Calculations!$F$49 -> 47 | F3: =Calculations!$G$49 -> 42 | G3: =Calculations!$H$49 -> 38 | H3: =Calculations!$I$49 -> 34 | I3: =Calculations!$J$49 -> 30 | J3: =Calculations!$K$49 -> 26 | K3: =Calculations!$L$49 -> 22 | L3: =Calculations!$M$49 -> 18 | M3: =Calculations!$N$49 -> 14 | N3: =Calculations!$O$49 -> 10 | O3: =Calculations!$P$49 -> 8 | P3: =Calculations!$Q$49 -> 5 | Q3: =Calculations!$R$49 -> 3 | R3: =Calculations!$S$49 -> 0 | S3: =Calculations!$T$49 -> 0 | T3: =Calculations!$U$49 -> 0 | U3: =Calculations!$V$49 -> 0 | V3: ='Detailed Model'!$Q$8 -> 5
B4: 1 | C4: 61 | D4: 57 | E4: 52 | F4: 47 | G4: 43 | H4: 39 | I4: 35 | J4: 31 | K4: 27 | L4: 23 | M4: 19 | N4: 19 | O4: 17 | P4: 16 | Q4: 18 | R4: 16 | S4: 14 | T4: 11 | U4: 8 | V4: 16
B5: 2 | C5: 49 | D5: 45 | E5: 40 | F5: 35 | G5: 31 | H5: 27 | I5: 23 | J5: 21 | K5: 19 | L5: 15 | M5: 11 | N5: 11 | O5: 11 | P5: 11 | Q5: 12 | R5: 11 | S5: 11 | T5: 10 | U5: 7 | V5: 11
B6: 3 | C6: 54 | D6: 50 | E6: 45 | F6: 40 | G6: 36 | H6: 32 | I6: 28 | J6: 25 | K6: 22 | L6: 17 | M6: 14 | N6: 10 | O6: 8 | P6: 6 | Q6: 3 | R6: 1 | S6: 0 | T6: 0 | U6: 0 | V6: 6
B7: 4 | C7: 53 | D7: 49 | E7: 44 | F7: 39 | G7: 35 | H7: 31 | I7: 27 | J7: 23 | K7: 21 | L7: 22 | M7: 21 | N7: 17 | O7: 16 | P7: 14 | Q7: 10 | R7: 10 | S7: 10 | T7: 10 | U7: 10 | V7: 14
B8: 5 | C8: 63 | D8: 59 | E8: 54 | F8: 49 | G8: 45 | H8: 41 | I8: 37 | J8: 33 | K8: 31 | L8: 31 | M8: 31 | N8: 27 | O8: 24 | P8: 21 | Q8: 18 | R8: 16 | S8: 13 | T8: 11 | U8: 11 | V8: 21
